bitfinex/quotes_BTCUSD_20240701
["timestamp","ask_amount","ask_price","bid_price","bid_amount"]
[1719837311043,1.7444733,62873.0,62872.0,0.009924]
[1719837311478,1.7474733,62873.0,62872.0,0.000924]
[1719837311836,1.7474733,62873.0,62872.0,0.001924]
[1719837312242,1.626894,62873.0,62872.0,0.001924]
[1719837313545,0.900092,62873.0,62872.0,0.344924]
[1719837313749,0.990692,62873.0,62872.0,0.344924]
[1719837313990,1.308793,62873.0,62872.0,0.344924]
[1719837316786,1.208793,62873.0,62872.0,0.344924]
[1719837317042,0.890692,62873.0,62872.0,0.530124]
[1719837317246,0.890692,62873.0,62872.0,0.550124]
[1719837317863,0.890692,62873.0,62872.0,0.530124]
[1719837318870,0.890692,62873.0,62872.0,0.550124]
[1719837319383,0.00484,62873.0,62872.0,0.72571049]
[1719837319986,0.25449,62873.0,62872.0,0.70571049]
[1719837320214,0.00484,62873.0,62872.0,0.72571049]
[1719837320418,0.09544,62873.0,62872.0,0.72571049]
[1719837320802,0.09144,62873.0,62872.0,0.72571049]
[1719837320963,0.09244,62873.0,62872.0,0.73171049]
[1719837321359,0.09344,62873.0,62872.0,0.74471049]
[1719837321968,0.00284,62873.0,62872.0,0.74471049]
[1719837322343,0.16189,62873.0,62872.0,0.74471049]
[1719837322693,0.798092,62873.0,62872.0,0.37717151]
[1719837324470,1.116193,62873.0,62872.0,0.37717151]
[1719837324670,1.116193,62873.0,62872.0,0.29807151]
[1719837325810,1.116193,62873.0,62872.0,0.03417151]
[1719837326859,1.115193,62873.0,62872.0,0.02717151]
[1719837327067,1.119193,62873.0,62872.0,0.02717151]
[1719837327471,1.118193,62873.0,62872.0,0.01417151]
[1719837327877,1.118193,62873.0,62872.0,0.01517151]
[1719837329813,1.118193,62873.0,62872.0,0.001924]
[1719837330015,1.501894,62873.0,62872.0,0.001924]
[1719837330891,1.601894,62873.0,62872.0,0.001924]
[1719837331516,1.6137489,62873.0,62872.0,0.001924]
[1719837332825,1.6387489,62873.0,62872.0,0.001924]
[1719837333030,1.7022489,62873.0,62872.0,0.001924]
[1719837333202,1.70810305,62873.0,62872.0,0.001924]
[1719837333384,1.78490305,62873.0,62872.0,0.001924]
[1719837333843,1.91525329,62873.0,62872.0,0.001924]
[1719837334549,1.78170305,62873.0,62872.0,0.001924]
[1719837335105,2.29994303,62873.0,62872.0,0.001924]
[1719837335332,2.28514303,62873.0,62872.0,0.001924]
[1719837335539,1.96704203,62873.0,62872.0,0.001924]
[1719837335737,1.87644203,62873.0,62872.0,0.001924]
[1719837335942,1.96704203,62873.0,62872.0,0.001924]
[1719837336979,1.32650205,62873.0,62872.0,0.001924]
[1719837337182,1.32650205,62873.0,62872.0,0.141924]
[1719837338131,1.00840105,62873.0,62872.0,0.327124]
[1719837338335,0.91780105,62873.0,62872.0,0.547124]
[1719837338539,0.81780105,62873.0,62872.0,0.547124]
[1719837340252,0.49970005,62873.0,62872.0,0.547124]
[1719837342547,0.02254905,62873.0,62872.0,0.56037151]
[1719837343154,0.00484,62873.0,62872.0,0.56037151]
[1719837343359,0.0232034,62873.0,62872.0,0.56037151]
[1719837343530,0.00484,62873.0,62872.0,0.56037151]
[1719837343767,0.02323564,62873.0,62872.0,0.56037151]
[1719837343945,0.00484,62873.0,62872.0,0.56037151]
[1719837344081,0.02323376,62873.0,62872.0,0.56037151]
[1719837344557,0.18228376,62873.0,62872.0,0.56037151]
[1719837345775,0.18228376,62873.0,62872.0,0.54037151]
[1719837345975,0.18228376,62873.0,62872.0,0.35517151]
[1719837346177,0.50038476,62873.0,62872.0,0.35517151]
[1719837346377,0.18228376,62873.0,62872.0,0.35517151]
[1719837346870,0.18228376,62873.0,62872.0,0.54037151]
[1719837347461,0.50038476,62873.0,62872.0,0.54037151]
[1719837348481,0.50038476,62873.0,62872.0,0.01517151]
[1719837348683,1.13658676,62873.0,62872.0,0.01517151]
[1719837353178,1.22718676,62873.0,62872.0,0.01517151]
[1719837353599,1.22718676,62873.0,62872.0,0.42037151]
[1719837353803,1.22718676,62873.0,62872.0,0.56207151]
[1719837353804,0.81848576,62873.0,62872.0,0.56207151]
[1719837354760,0.02323376,62873.0,62872.0,0.56207151]
[1719837354961,0.18228376,62873.0,62872.0,0.56207151]
[1719837355914,0.50038476,62873.0,62872.0,0.35687151]
[1719837356226,0.81848576,62873.0,62872.0,0.01517151]
[1719837356638,0.81848576,62873.0,62872.0,0.01017151]
[1719837357082,0.81848576,62873.0,62872.0,0.21017151]
[1719837357240,0.81848576,62873.0,62872.0,0.39537151]
[1719837357576,0.81848576,62873.0,62872.0,0.21017151]
[1719837357776,0.81848576,62873.0,62872.0,0.39537151]
[1719837358558,0.81848576,62873.0,62872.0,0.39629551]
[1719837358965,0.90908576,62873.0,62872.0,0.39629551]
[1719837359552,0.90908576,62873.0,62872.0,0.21109551]
[1719837359809,0.90908576,62873.0,62872.0,0.39629551]
[1719837361475,0.90908576,62873.0,62872.0,0.41629551]
[1719837361696,0.81848576,62873.0,62872.0,0.41629551]
[1719837362049,0.81848576,62873.0,62872.0,0.55929551]
[1719837362050,0.02323376,62873.0,62872.0,0.55929551]
[1719837362393,0.18228376,62873.0,62872.0,0.55929551]
[1719837365407,0.02323376,62873.0,62872.0,0.55929551]
[1719837368454,0.02323376,62873.0,62872.0,0.71834851]
[1719837368861,0.00484,62873.0,62872.0,0.71834851]
[1719837370724,0.02326682,62873.0,62872.0,0.71834851]
[1719837370926,0.02326682,62873.0,62872.0,0.55929551]
[1719837370927,0.00484,62873.0,62872.0,0.55929551]
[1719837371111,0.02326682,62873.0,62872.0,0.55929551]
[1719837371362,0.00484,62873.0,62872.0,0.55929551]
[1719837371562,0.02326682,62873.0,62872.0,0.55929551]
[1719837371771,0.00484,62873.0,62872.0,0.55929551]
[1719837372008,0.02326682,62873.0,62872.0,0.53929551]
[1719837372209,0.16389,62873.0,62872.0,0.53929551]
[1719837372321,0.50041782,62873.0,62872.0,0.39629551]
[1719837372539,0.50041782,62873.0,62872.0,0.41629551]
[1719837372957,0.50041782,62873.0,62872.0,0.39629551]
[1719837373496,0.50041782,62873.0,62872.0,0.21109551]
[1719837373717,0.81851882,62873.0,62872.0,0.21109551]
[1719837373946,0.89741882,62873.0,62872.0,0.01109551]
[1719837374162,0.89741882,62873.0,62872.0,0.11109551]
[1719837374792,0.81851882,62873.0,62872.0,0.49629551]
[1719837375160,0.81851882,62873.0,62872.0,0.51629551]
[1719837375529,0.50041782,62873.0,62872.0,0.51629551]
[1719837376175,0.02326682,62873.0,62872.0,0.51629551]
[1719837376377,0.02326682,62873.0,62872.0,1.13774049]
[1719837376583,0.00484,62873.0,62872.0,1.71549949]
[1719837378170,0.00484,62873.0,62872.0,1.62489949]
[1719837378401,0.00084,62873.0,62872.0,1.62489949]
[1719837378557,0.00284,62873.0,62872.0,1.64689949]
[1719837379568,0.00284,62873.0,62872.0,1.63689949]
[1719837381752,0.00284,62873.0,62872.0,1.64689949]
[1719837382470,0.00284,62873.0,62872.0,1.63689949]
[1719837382991,0.00284,62873.0,62872.0,1.64689949]
[1719837385066,0.00284,62873.0,62872.0,1.73749949]
[1719837385507,0.00284,62873.0,62872.0,2.25560549]
[1719837386572,0.00284,62873.0,62872.0,2.05560549]
[1719837386780,0.00284,62873.0,62872.0,2.25560549]
[1719837387967,0.00284,62873.0,62872.0,2.77371149]
[1719837388940,0.00084,62873.0,62872.0,2.75171149]
[1719837389385,0.00084,62873.0,62872.0,2.76571149]
[1719837389906,0.00184,62873.0,62872.0,2.77571149]
[1719837391139,0.00184,62873.0,62872.0,2.37571149]
[1719837391582,0.00184,62873.0,62872.0,2.57571149]
[1719837392052,0.00184,62873.0,62872.0,2.37571149]
[1719837392301,0.00184,62873.0,62872.0,2.57571149]
[1719837392726,0.00184,62873.0,62872.0,2.77571149]
[1719837395515,0.00184,62873.0,62872.0,2.57571149]
[1719837395737,0.00184,62873.0,62872.0,2.37571149]
[1719837396194,0.00184,62873.0,62872.0,2.57571149]
[1719837396418,0.00184,62873.0,62872.0,2.37571149]
[1719837396865,0.00184,62873.0,62872.0,2.77571149]
[1719837397091,0.00184,62873.0,62872.0,2.57571149]
[1719837397320,0.00184,62873.0,62872.0,2.77571149]
[1719837397550,0.00184,62873.0,62872.0,2.37571149]
[1719837398420,0.00184,62873.0,62872.0,2.57571149]
[1719837398625,0.00184,62873.0,62872.0,2.37571149]
[1719837399265,0.00184,62873.0,62872.0,2.57571149]
[1719837400986,0.00184,62873.0,62872.0,2.37571149]
[1719837401233,0.00184,62873.0,62872.0,1.96700549]
[1719837401482,0.00184,62873.0,62872.0,2.05760549]
[1719837404484,0.00184,62873.0,62872.0,2.25760549]
[1719837405360,0.00184,62873.0,62872.0,2.77571149]
[1719837406189,0.00084,62873.0,62872.0,2.76571149]
[1719837407350,0.00084,62873.0,62872.0,2.75171149]
[1719837407787,0.00084,62873.0,62872.0,2.76571149]
[1719837408011,0.00084,62873.0,62872.0,3.50201718]
[1719837408434,0.00084,62873.0,62872.0,3.51601718]
[1719837408846,0.00084,62873.0,62872.0,3.53001718]
[1719837409062,0.00084,62873.0,62872.0,3.53000955]
[1719837409502,0.00084,62873.0,62872.0,3.51600955]
[1719837409709,0.00084,62873.0,62872.0,3.19790355]
[1719837410190,0.00084,62873.0,62872.0,3.12130355]
[1719837410414,0.00084,62873.0,62872.0,3.21190355]
[1719837412220,0.00084,62873.0,62872.0,3.39781749]
[1719837412423,0.00084,62873.0,62872.0,3.55300904]
[1719837412897,0.00084,62873.0,62872.0,3.55300796]
[1719837414371,0.00084,62886.0,62885.0,1.88211151]
[1719837414512,0.00084,62886.0,62885.0,2.49388149]
[1719837414714,0.00084,62886.0,62885.0,2.81192149]
[1719837415179,0.00084,62886.0,62885.0,2.94409576]
[1719837415385,0.00084,62886.0,62885.0,2.81192149]
[1719837415804,0.00084,62886.0,62885.0,2.82592149]
[1719837416215,0.00084,62886.0,62885.0,2.83692149]
[1719837417684,0.00084,62886.0,62885.0,2.82292149]
[1719837417879,0.00084,62886.0,62885.0,2.83692149]
[1719837418900,0.00084,62886.0,62885.0,2.82592149]
[1719837419105,0.00084,62886.0,62885.0,3.12592149]
[1719837419744,0.00084,62886.0,62885.0,2.98109049]
[1719837421118,0.00084,62886.0,62885.0,2.96709049]
[1719837421325,0.00084,62886.0,62885.0,3.28513049]
[1719837421483,0.00084,62886.0,62885.0,3.45429742]
[1719837422292,0.00084,62886.0,62885.0,3.32213049]
[1719837422497,0.0086521,62900.0,62899.0,2.05623651]
[1719837422729,0.0086521,62900.0,62899.0,3.35277649]
[1719837422942,0.0086521,62900.0,62899.0,3.45277649]
[1719837424259,0.0086521,62900.0,62899.0,3.46577649]
[1719837424463,0.0086521,62900.0,62899.0,3.45277649]
[1719837424913,0.0086521,62900.0,62899.0,3.46677649]
[1719837425574,0.0086521,62900.0,62899.0,3.61290895]
[1719837426428,0.0084,62916.0,62915.0,2.05587151]
[1719837426668,0.1524,62916.0,62915.0,1.21337449]
[1719837426869,0.1524,62916.0,62915.0,0.73654149]
[1719837427278,0.16778385,62916.0,62915.0,0.89548549]
[1719837427451,0.16778385,62916.0,62915.0,1.21337449]
[1719837427691,0.16778385,62916.0,62915.0,1.03103551]
[1719837427944,0.629226,62916.0,62915.0,0.36900251]
[1719837428144,0.629226,62916.0,62915.0,0.58820251]
[1719837428344,0.96258738,62916.0,62915.0,0.56820251]
[1719837428962,0.96258738,62916.0,62915.0,0.55420251]
[1719837429386,0.96258738,62916.0,62915.0,0.59920251]
[1719837429993,0.96258738,62916.0,62915.0,0.58820251]
[1719837430204,0.96258738,62916.0,62915.0,0.59320251]
[1719837430629,0.96258738,62916.0,62915.0,0.58820251]
[1719837430837,0.96258738,62916.0,62915.0,0.57420251]
[1719837431036,0.96258738,62916.0,62915.0,0.57720251]
[1719837431236,0.96258738,62916.0,62915.0,0.58820251]
[1719837431443,0.96258738,62916.0,62915.0,0.57720251]
[1719837431644,0.32681938,62916.0,62915.0,0.41837151]
[1719837431854,0.32681938,62916.0,62915.0,0.42837151]
[1719837432263,0.16787738,62916.0,62915.0,0.74965449]
[1719837432691,0.1524,62916.0,62915.0,0.74965449]
[1719837432912,0.32678612,62916.0,62915.0,0.59071049]
[1719837433129,0.32678612,62916.0,62915.0,0.02317151]
[1719837433130,0.96255412,62916.0,62915.0,0.02317151]
[1719837433330,1.28043812,62916.0,62915.0,0.22317151]
[1719837433653,1.28043812,62916.0,62915.0,0.02317151]
[1719837434502,1.28043812,62916.0,62915.0,0.013]
[1719837434707,1.59832212,62916.0,62915.0,0.013]
[1719837435546,1.59832212,62916.0,62915.0,0.003]
[1719837435753,1.112664,62912.0,62911.0,0.01017151]
[1719837435959,1.254764,62912.0,62911.0,0.16900251]
[1719837436224,1.27081945,62912.0,62911.0,0.16900251]
[1719837436808,1.112734,62908.0,62907.0,0.01017151]
[1719837437017,1.480934,62908.0,62907.0,0.01017151]
[1719837437174,1.4969951,62908.0,62907.0,0.01017151]
[1719837437581,1.2708951,62908.0,62907.0,0.01017151]
[1719837438184,1.2708951,62908.0,62907.0,0.19537151]
[1719837438379,1.2708951,62908.0,62907.0,0.21537151]
[1719837438632,0.9529711,62908.0,62907.0,0.41537151]
[1719837438840,0.1581611,62908.0,62907.0,0.42937151]
[1719837439050,0.6350471,62908.0,62907.0,0.42937151]
[1719837440195,0.6160471,62908.0,62907.0,0.42937151]
[1719837440604,0.6160471,62908.0,62907.0,0.43737151]
[1719837441959,0.9339711,62908.0,62907.0,0.23217151]
[1719837442165,0.9339711,62908.0,62907.0,0.41737151]
[1719837442368,1.2518951,62908.0,62907.0,0.21737151]
[1719837442691,1.2518951,62908.0,62907.0,0.41737151]
[1719837443144,1.2518951,62908.0,62907.0,0.23217151]
[1719837443563,1.2518951,62908.0,62907.0,0.03217151]
[1719837447518,0.4929471,62908.0,62907.0,0.43737151]
[1719837447929,0.0160611,62908.0,62907.0,0.43737151]
[1719837448345,0.158959,62910.0,62909.0,0.4052]
[1719837448547,0.158959,62910.0,62909.0,0.564031]
[1719837448779,0.158959,62910.0,62909.0,0.57420251]
[1719837449460,0.1429,62914.0,62913.0,0.4052]
[1719837449616,0.326288,62916.0,62915.0,0.2]
[1719837449818,0.326288,62916.0,62915.0,0.4052]
[1719837450020,0.48523,62916.0,62915.0,0.2]
[1719837450423,0.48523,62916.0,62915.0,0.3852]
[1719837450825,0.48523,62916.0,62915.0,0.2]
[1719837451455,0.803118,62916.0,62915.0,0.2]
[1719837452499,0.81770534,62916.0,62915.0,0.204]
[1719837453896,0.81770534,62916.0,62915.0,0.3892]
[1719837455573,0.81770534,62916.0,62915.0,0.204]
[1719837457124,1.13559334,62916.0,62915.0,0.004]
[1719837457326,1.27479334,62916.0,62915.0,0.004]
[1719837457708,1.26937458,62916.0,62915.0,0.004]
[1719837457849,1.58726258,62916.0,62915.0,0.004]
[1719837462944,1.26937458,62916.0,62915.0,0.004]
[1719837463154,0.81228658,62916.0,62915.0,0.3892]
[1719837463678,0.81228658,62916.0,62915.0,0.4092]
[1719837463879,0.81228658,62916.0,62915.0,0.204]
[1719837466126,0.81228658,62916.0,62915.0,0.4092]
[1719837467269,0.81228658,62916.0,62915.0,0.204]
[1719837467641,0.81228658,62916.0,62915.0,0.3892]
[1719837467867,0.81228658,62916.0,62915.0,0.204]
[1719837468023,0.81228658,62916.0,62915.0,0.004]
[1719837468202,0.81228658,62916.0,62915.0,0.204]
[1719837468418,0.81228658,62916.0,62915.0,0.004]
[1719837468626,0.81228658,62916.0,62915.0,0.204]
[1719837468822,0.81228658,62916.0,62915.0,0.004]
[1719837469223,0.81228658,62916.0,62915.0,0.204]
[1719837469698,0.81228658,62916.0,62915.0,0.004]
[1719837470040,0.81228658,62916.0,62915.0,0.204]
[1719837474661,0.81228658,62916.0,62915.0,0.3892]
[1719837474868,0.81228658,62916.0,62915.0,0.204]
[1719837475233,0.01756858,62916.0,62915.0,0.87698298]
[1719837475440,0.01756858,62916.0,62915.0,0.88715449]
[1719837475642,0.0084,62916.0,62915.0,0.88715449]
[1719837476188,0.0084,62916.0,62915.0,0.72821049]
[1719837476812,0.0175762,62916.0,62915.0,0.72821049]
[1719837477024,0.0175762,62916.0,62915.0,0.39937151]
[1719837477025,0.1765182,62916.0,62915.0,0.39937151]
[1719837477231,0.4944022,62916.0,62915.0,0.39937151]
[1719837478358,0.4944022,62916.0,62915.0,0.41937151]
[1719837478731,0.1765182,62916.0,62915.0,0.41937151]
[1719837479373,0.1765182,62916.0,62915.0,0.21417151]
[1719837479583,0.1765182,62916.0,62915.0,0.41937151]
[1719837483255,0.1765182,62916.0,62915.0,0.39937151]
[1719837483902,0.1765182,62916.0,62915.0,0.41937151]
[1719837484058,0.0175762,62916.0,62915.0,0.41937151]
[1719837485311,0.0175762,62916.0,62915.0,1.05854349]
[1719837485711,0.0084,62916.0,62915.0,1.05854349]
[1719837485890,0.01761391,62916.0,62915.0,1.05854349]
[1719837486091,0.0084,62916.0,62915.0,1.05854349]
[1719837486289,0.01761391,62916.0,62915.0,1.05854349]
[1719837486524,0.0084,62916.0,62915.0,1.05854349]
[1719837486732,0.01761391,62916.0,62915.0,1.05854349]
[1719837488579,0.01761391,62916.0,62915.0,0.74065449]
[1719837489532,0.17655591,62916.0,62915.0,0.39937151]
[1719837489980,0.49443991,62916.0,62915.0,0.39937151]
[1719837490223,0.49443991,62916.0,62915.0,0.21417151]
[1719837490713,0.81232391,62916.0,62915.0,0.21417151]
[1719837491326,0.81232391,62916.0,62915.0,0.39937151]
[1719837491549,0.8155385,62916.0,62915.0,0.39937151]
[1719837491891,0.8155385,62916.0,62915.0,0.41937151]
[1719837492681,0.0208285,62916.0,62915.0,0.74065449]
[1719837493718,0.0285085,62916.0,62915.0,0.58171049]
[1719837493989,0.0285085,62916.0,62915.0,0.74065449]
[1719837495435,0.0285085,62916.0,62915.0,0.84065449]
[1719837497841,0.0285085,62916.0,62915.0,0.68171049]
[1719837498041,0.0285085,62916.0,62915.0,0.66171049]
[1719837498042,0.1874505,62916.0,62915.0,0.66171049]
[1719837498351,0.1874505,62916.0,62915.0,0.49937151]
[1719837498352,0.5053345,62916.0,62915.0,0.49937151]
[1719837498806,0.5857345,62916.0,62915.0,0.49937151]
[1719837499323,0.5857345,62916.0,62915.0,0.66171049]
[1719837499324,0.1874505,62916.0,62915.0,0.66171049]
[1719837499731,0.1874505,62916.0,62915.0,0.68171049]
[1719837504837,0.1874505,62916.0,62915.0,0.66171049]
[1719837505235,0.1874505,62916.0,62915.0,0.68171049]
[1719837505614,0.1874505,62916.0,62915.0,0.66171049]
[1719837506013,0.5053345,62916.0,62915.0,0.66171049]
[1719837506824,1.2236025,62916.0,62915.0,0.31417151]
[1719837507048,1.2880025,62916.0,62915.0,0.31417151]
[1719837507468,0.9701185,62916.0,62915.0,0.31417151]
[1719837508466,0.9701185,62916.0,62915.0,0.49937151]
[1719837508874,1.0605185,62916.0,62915.0,0.49937151]
[1719837509822,0.9701185,62916.0,62915.0,0.49937151]
[1719837510030,1.0605185,62916.0,62915.0,0.51937151]
[1719837510346,1.0605185,62916.0,62915.0,0.49937151]
[1719837511159,1.0605185,62916.0,62915.0,0.31417151]
[1719837511359,1.0605185,62916.0,62915.0,0.49937151]
[1719837511607,1.0605185,62916.0,62915.0,0.31417151]
[1719837512359,1.0605185,62916.0,62915.0,0.11417151]
[1719837512696,1.3784025,62916.0,62915.0,0.11417151]
[1719837514118,1.3784025,62916.0,62915.0,0.104]
[1719837514444,1.3784025,62916.0,62915.0,0.11417151]
[1719837516277,1.2880025,62916.0,62915.0,0.11417151]
[1719837516583,1.3784025,62916.0,62915.0,0.11417151]
[1719837522180,1.3784025,62916.0,62915.0,0.104]
[1719837523407,1.46458054,62916.0,62915.0,0.104]
[1719837523603,1.3784025,62916.0,62915.0,0.104]
[1719837525834,1.3784025,62916.0,62915.0,0.1]
[1719837526052,1.3794025,62916.0,62915.0,0.1]
[1719837526491,1.3804025,62916.0,62915.0,0.1]
[1719837526708,1.3794025,62916.0,62915.0,0.1]
[1719837526898,1.3804025,62916.0,62915.0,0.101]
[1719837529223,1.6982865,62916.0,62915.0,0.101]
[1719837529425,1.3804025,62916.0,62915.0,0.101]
[1719837534596,1.2900025,62916.0,62915.0,0.101]
[1719837534796,1.2900025,62916.0,62915.0,0.4962]
[1719837534797,0.8252185,62916.0,62915.0,0.4962]
[1719837535000,0.5073345,62916.0,62915.0,0.5062]
[1719837535178,0.5073345,62916.0,62915.0,0.4862]
[1719837535380,0.5073345,62916.0,62915.0,0.5062]
[1719837535915,0.5063345,62916.0,62915.0,0.5052]
[1719837536701,0.5063345,62916.0,62915.0,0.5092]
[1719837537113,0.1884505,62916.0,62915.0,0.5092]
[1719837537311,0.1749505,62916.0,62915.0,0.5092]
[1719837537515,0.17831131,62916.0,62915.0,0.5092]
[1719837539531,0.17831131,62916.0,62915.0,0.4892]
[1719837539733,0.58659531,62916.0,62915.0,0.4892]
[1719837539887,0.26871131,62916.0,62915.0,0.5092]
[1719837540574,0.26871131,62916.0,62915.0,0.4892]
[1719837542699,0.58659531,62916.0,62915.0,0.4892]
[1719837543318,0.26871131,62916.0,62915.0,0.4892]
[1719837543895,0.26871131,62916.0,62915.0,0.5092]
[1719837545549,0.10976931,62916.0,62915.0,0.5092]
[1719837547112,0.01936931,62916.0,62915.0,1.61953249]
[1719837547322,0.00868,62916.0,62915.0,1.61953249]
[1719837547954,0.00868,62916.0,62915.0,1.61553249]
[1719837548362,0.00868,62916.0,62915.0,1.62953249]
[1719837548974,0.00768,62916.0,62915.0,1.62953249]
[1719837549174,0.00768,62916.0,62915.0,1.64053249]
[1719837550120,0.00768,62916.0,62915.0,0.66347151]
[1719837550539,0.00768,62916.0,62915.0,0.52037151]
[1719837550540,0.01841447,62916.0,62915.0,0.52037151]
[1719837550745,0.17735647,62916.0,62915.0,0.33517151]
[1719837550944,0.17735647,62916.0,62915.0,0.52037151]
[1719837553115,0.17735647,62916.0,62915.0,0.54037151]
[1719837553520,0.01841447,62916.0,62915.0,0.54037151]
[1719837553721,0.01841447,62916.0,62915.0,0.70271049]
[1719837553946,0.01841447,62916.0,62915.0,1.00265449]
[1719837554146,0.01841447,62916.0,62915.0,1.32054349]
[1719837555767,0.01841447,62916.0,62915.0,1.32146749]
[1719837555971,0.01925447,62916.0,62915.0,1.32146749]
[1719837558307,0.01925447,62916.0,62915.0,1.00357849]
[1719837558503,0.01925447,62916.0,62915.0,0.82463449]
[1719837558998,0.01925447,62916.0,62915.0,0.84463449]
[1719837559460,0.01925447,62916.0,62915.0,1.00357849]
[1719837559825,0.01925447,62916.0,62915.0,0.82463449]
[1719837560028,0.01925447,62916.0,62915.0,0.84463449]
[1719837560228,0.01925447,62916.0,62915.0,0.70363449]
[1719837560421,0.01925447,62916.0,62915.0,0.68363449]
[1719837561039,0.01925447,62916.0,62915.0,0.70363449]
[1719837561439,0.17819647,62916.0,62915.0,0.70363449]
[1719837561722,0.17819647,62916.0,62915.0,0.33609551]
[1719837561723,0.81396447,62916.0,62915.0,0.33609551]
[1719837561918,0.81396447,62916.0,62915.0,0.52129551]
[1719837562562,0.81396447,62916.0,62915.0,0.54129551]
[1719837564395,0.49608047,62916.0,62915.0,0.54129551]
[1719837566411,0.17819647,62916.0,62915.0,0.54129551]
[1719837566869,0.01925447,62916.0,62915.0,0.54129551]
[1719837567286,0.01925447,62916.0,62915.0,1.32256749]
[1719837567512,0.00852,62916.0,62915.0,1.32256749]
[1719837569005,0.326248,62923.0,62916.0,0.317883]
[1719837569206,0.326248,62923.0,62922.0,0.2]
[1719837569361,0.485172,62923.0,62922.0,0.2]
[1719837569579,0.485172,62923.0,62922.0,0.3852]
[1719837569777,0.485172,62923.0,62922.0,0.2]
[1719837570162,0.714472,62923.0,62922.0,0.2]
[1719837570596,1.03232,62923.0,62922.0,0.2]
[1719837570861,0.89342,62923.0,62922.0,0.008]
[1719837571058,1.211268,62923.0,62922.0,0.008]
[1719837571479,0.89342,62923.0,62922.0,0.008]
[1719837572069,0.0084,62923.0,62922.0,0.4132]
[1719837572518,0.167324,62923.0,62922.0,0.4132]
[1719837572697,0.17809578,62923.0,62922.0,0.4132]
[1719837573060,0.17809578,62923.0,62922.0,0.4152]
[1719837578559,0.01917178,62923.0,62922.0,0.74663649]
[1719837579503,0.01917178,62923.0,62922.0,0.58771049]
[1719837580932,0.01917178,62923.0,62922.0,0.56771049]
[1719837581348,0.17809578,62923.0,62922.0,0.56771049]
[1719837581550,0.01917178,62923.0,62922.0,0.58771049]
[1719837583436,0.01917178,62923.0,62922.0,0.56771049]
[1719837583648,0.17809578,62923.0,62922.0,0.56771049]
[1719837584271,0.17809578,62923.0,62922.0,0.66771049]
[1719837584711,0.49594378,62923.0,62922.0,0.66771049]
[1719837585561,0.81379178,62923.0,62922.0,0.32017151]
[1719837585775,1.13163978,62923.0,62922.0,0.12017151]
[1719837589135,1.13163978,62923.0,62922.0,0.11]
[1719837589311,1.27313978,62923.0,62922.0,0.11]
[1719837589751,1.36353978,62923.0,62922.0,0.12017151]
[1719837590281,1.36353978,62923.0,62922.0,0.11]
[1719837590489,1.36353978,62923.0,62922.0,0.12017151]
[1719837591987,1.36353978,62923.0,62922.0,0.11]
[1719837592603,1.83205785,62923.0,62922.0,0.11]
[1719837592937,1.68964781,62923.0,62922.0,0.11]
[1719837593137,1.8328087,62923.0,62922.0,0.11]
[1719837593549,1.8328087,62923.0,62922.0,0.1]
[1719837594209,1.8338087,62923.0,62922.0,0.101]
[1719837594382,1.69064781,62923.0,62922.0,0.101]
[1719837594628,1.68238778,62923.0,62922.0,0.101]
[1719837599863,1.59198778,62923.0,62922.0,0.101]
[1719837600268,1.68238778,62923.0,62922.0,0.101]
[1719837604190,1.59198778,62923.0,62922.0,0.101]
[1719837604392,1.68238778,62923.0,62922.0,0.101]
[1719837605729,1.36453978,62923.0,62922.0,0.101]
[1719837606185,0.81479178,62923.0,62922.0,0.2862]
[1719837606385,0.81479178,62923.0,62922.0,0.5062]
[1719837606386,0.17909578,62923.0,62922.0,0.5062]
[1719837606629,0.17909578,62923.0,62922.0,0.301]
[1719837606913,0.17909578,62923.0,62922.0,0.096]
[1719837606914,0.90519178,62923.0,62922.0,0.096]
[1719837607116,1.22303978,62923.0,62922.0,0.096]
[1719837607315,1.29963978,62923.0,62922.0,0.096]
[1719837607528,1.22303978,62923.0,62922.0,0.096]
[1719837607742,1.28823978,62923.0,62922.0,0.095]
[1719837608146,1.28923978,62923.0,62922.0,0.095]
[1719837608439,1.22203978,62923.0,62922.0,0.095]
[1719837608786,1.22303978,62923.0,62922.0,0.095]
[1719837608984,1.22403978,62923.0,62922.0,0.095]
[1719837609184,1.22303978,62923.0,62922.0,0.095]
[1719837609504,1.36893978,62923.0,62922.0,0.096]
[1719837610189,1.36793978,62923.0,62922.0,0.096]
[1719837610399,1.22403978,62923.0,62922.0,0.097]
[1719837615505,1.46737349,62923.0,62922.0,0.097]
[1719837615708,1.30503978,62923.0,62922.0,0.097]
[1719837615910,1.36873978,62923.0,62922.0,0.097]
[1719837616130,1.70958778,62923.0,62922.0,0.097]
[1719837616337,1.80958778,62923.0,62922.0,0.097]
[1719837617653,1.71918778,62923.0,62922.0,0.097]
[1719837617872,1.80958778,62923.0,62922.0,0.097]
[1719837619503,1.71918778,62923.0,62922.0,0.097]
[1719837619718,1.80958778,62923.0,62922.0,0.097]
[1719837620325,1.81784832,62923.0,62922.0,0.097]
[1719837621014,1.98018203,62923.0,62922.0,0.097]
[1719837621949,1.81784832,62923.0,62922.0,0.097]
[1719837622890,1.9949873,62923.0,62922.0,0.097]
[1719837623109,2.3128353,62923.0,62922.0,0.097]
[1719837623360,2.34157277,62923.0,62922.0,0.097]
[1719837623600,2.50255749,62923.0,62922.0,0.097]
[1719837623827,2.6648912,62923.0,62922.0,0.097]
[1719837624053,2.6648912,62923.0,62922.0,0.095924]
[1719837624054,3.47060966,62923.0,62922.0,0.095924]
[1719837624290,2.09601949,62922.0,62921.0,0.000924]
[1719837624532,2.09601949,62922.0,62915.0,0.000924]
[1719837624533,1.206994,62916.0,62915.0,0.000924]
[1719837624788,1.73601698,62916.0,62915.0,0.000924]
[1719837625107,1.22085454,62916.0,62915.0,0.000924]
[1719837625325,1.22473491,62916.0,62915.0,0.186124]
[1719837625836,1.22473491,62916.0,62915.0,0.333224]
[1719837625837,0.90685091,62916.0,62915.0,0.333224]
[1719837626079,0.90685091,62916.0,62915.0,0.56339551]
[1719837626080,0.01214091,62916.0,62915.0,0.56339551]
[1719837626310,0.01214091,62916.0,62915.0,1.20256749]
[1719837626543,0.0104,62923.0,62922.0,0.4052]
[1719837626786,0.0104,62923.0,62922.0,0.41537151]
[1719837627037,0.0094,62923.0,62922.0,0.97062851]
[1719837627267,0.0094,62923.0,62922.0,1.28848151]
[1719837627268,0.0234,62923.0,62922.0,1.28848151]
[1719837627558,0.0084,62923.0,62922.0,0.98062851]